bitfinex-derivatives/quotes_SOLF0:USTF0_20241029
["timestamp","ask_amount","ask_price","bid_price","bid_amount"]
[1730170178492,2.7584,181.42,181.37,2.7591]
[1730170178794,17.22599636,181.44,181.37,2.7591]
[1730170179197,2.7586,181.41,181.37,2.7591]
[1730170179597,6.2,181.48,181.35,6.2]
[1730170179598,6.2,181.48,181.38,17.22599636]
[1730170180097,16.76562097,181.48,181.4,2.7586]
[1730170180490,16.76562097,181.48,181.36,17.22599636]
[1730170180692,17.22599636,181.46,181.36,23.42599636]
[1730170180997,2.7585,181.41,181.36,23.42599636]
[1730170181192,17.22599636,181.46,181.31,2.931]
[1730170181193,10.56562097,181.45,181.31,2.931]
[1730170181393,17.22599636,181.44,181.32,23.42599636]
[1730170181787,2.7588,181.4,181.36,2.7592]
[1730170181994,2.7588,181.4,181.32,23.42599636]
[1730170182297,2.7589,181.39,181.35,2.7593]
[1730170182901,2.7589,181.39,181.32,23.42599636]
[1730170183101,10.56633934,181.43,181.35,17.22599636]
[1730170183102,2.7585,181.42,181.35,17.22599636]
[1730170183285,10.56633934,181.45,181.35,17.22599636]
[1730170183485,17.22599636,181.46,181.35,17.22599636]
[1730170183697,10.56587526,181.47,181.37,17.22599636]
[1730170184001,16.76587526,181.48,181.37,17.22599636]
[1730170184195,2.7582,181.43,181.4,2.7586]
[1730170184398,2.7582,181.43,181.37,17.22599636]
[1730170184796,16.76587526,181.48,181.37,17.22599636]
[1730170185103,2.7584,181.42,181.39,2.7587]
[1730170185797,2.7584,181.42,181.35,17.22599636]
[1730170185999,2.7583,181.42,181.35,17.22599636]
[1730170186397,10.56587526,181.45,181.35,17.22599636]
[1730170186598,17.22599636,181.46,181.35,17.22599636]
[1730170186993,17.22599636,181.46,181.37,2.7591]
[1730170187201,2.7586,181.41,181.37,2.7591]
[1730170187598,10.56587526,181.45,181.37,2.7591]
[1730170188501,2.7586,181.41,181.37,2.7591]
[1730170188889,2.76880454,181.42,181.35,2.7594]
[1730170189089,2.7589,181.39,181.35,2.7594]
[1730170189297,2.73871484,181.42,181.35,2.7594]
[1730170190496,2.759,181.38,181.35,2.7594]
[1730170191901,13.30437875,181.42,181.34,2.7595]
[1730170191902,2.7591,181.37,181.34,2.7595]
[1730170193697,2.7605,181.28,181.14,2.7625]
[1730170193904,2.7605,181.28,180.96,5.5305]
[1730170193905,17.22599636,181.35,180.91,10.12]
[1730170193906,9.76,181.29,180.91,10.12]
[1730170194203,17.22599636,181.21,181.14,2.7624]
[1730170194508,3.0311,181.27,181.03,5.49885613]
[1730170194509,10.56566391,181.25,181.03,5.49885613]
[1730170194804,20.01225718,181.26,181.14,17.22599636]
[1730170194996,17.22599636,181.23,181.09,17.22599636]
[1730170195201,5.77069303,181.27,181.03,2.7924]
[1730170195703,17.22599636,181.26,181.14,17.22599636]
[1730170195898,5.77069303,181.27,181.11,17.22599636]
[1730170196100,17.22599636,181.25,181.11,17.22599636]
[1730170196301,5.77069303,181.27,181.14,17.22599636]
[1730170196302,2.7609,181.26,181.14,17.22599636]
[1730170196500,20.25709636,181.27,181.16,17.24531967]
[1730170196501,3.0311,181.27,181.16,17.24531967]
[1730170196803,20.27641967,181.27,181.16,17.24531967]
[1730170196996,11.45570029,181.26,181.16,17.24531967]
[1730170197508,11.45570029,181.26,181.13,20.07901967]
[1730170198206,17.24531967,181.24,181.13,20.07901967]
[1730170198615,17.24531967,181.24,181.12,1.4359]
[1730170199007,2.7616,181.21,181.12,1.4359]
[1730170200014,2.761,181.25,181.15,2.7624]
[1730170200220,3.0311,181.27,181.14,1.5162]
[1730170201210,2.7616,181.21,181.14,1.5162]
[1730170201611,3.0311,181.27,181.14,1.5162]
[1730170203123,2.7615,181.21,181.14,1.5162]
[1730170203625,2.7615,181.21,181.14,4.2788]
[1730170203814,2.7613,181.23,181.14,1.5162]
[1730170204124,3.0311,181.27,181.15,27.60585888]
[1730170204420,2.7612,181.23,181.16,2.7622]
[1730170204619,3.0311,181.27,181.14,1.5162]
[1730170204822,27.60585888,181.26,181.13,1.3868]
[1730170205424,2.762,181.19,181.13,1.3868]
[1730170206014,11.43660096,181.25,181.13,1.3868]
[1730170206223,3.0311,181.27,181.13,1.3868]
[1730170206617,27.60585888,181.26,181.13,4.1494]
[1730170206820,11.43660096,181.25,181.13,4.1494]
[1730170207020,11.43660096,181.25,181.13,1.3868]
[1730170207021,27.60585888,181.23,181.13,1.3868]
[1730170207219,27.60585888,181.23,181.12,1.4359]
[1730170207220,11.43660096,181.22,181.12,1.4359]
[1730170207829,2.7624,181.16,181.12,1.4359]
[1730170208032,11.43660096,181.22,181.12,1.4359]
[1730170208328,27.60585888,181.26,181.12,29.04175888]
[1730170208521,2.7618,181.2,181.15,2.7624]
[1730170208719,11.43343137,181.25,181.15,2.7624]
[1730170208921,27.60585888,181.23,181.12,1.4359]
[1730170209516,2.7623,181.16,181.12,1.4359]
[1730170209719,11.43198379,181.22,181.09,2.7633]
[1730170209931,27.60585888,181.2,181.09,2.7633]
[1730170210233,1.4249,181.19,181.07,13.5286]
[1730170210423,1.4249,181.19,181.1,2.7632]
[1730170210820,2.7625,181.15,181.1,2.7632]
[1730170211417,2.7621,181.17,181.12,2.7628]
[1730170211635,11.42213474,181.22,181.12,2.7628]
[1730170212222,2.7618,181.19,181.12,2.7628]
[1730170212423,27.60585888,181.23,181.09,27.60585888]
[1730170212622,1.4471,181.24,181.1,1.4704]
[1730170212933,2.7618,181.2,181.1,1.4704]
[1730170213124,27.60585888,181.23,181.12,2.7628]
[1730170213323,27.60585888,181.23,181.11,1.4332]
[1730170213526,2.7624,181.16,181.11,1.4332]
[1730170214125,2.7624,181.16,181.12,2.7629]
[1730170214328,2.7624,181.16,181.11,1.4332]
[1730170214829,2.7624,181.16,181.11,4.1961]
[1730170215025,2.7624,181.16,181.11,1.4332]
[1730170216735,27.60585888,181.2,181.07,4.1923]
[1730170217236,27.60585888,181.2,181.07,1.4286]
[1730170217424,27.60585888,181.17,181.03,27.60585888]
[1730170217623,4.4089,181.16,181.02,13.1178]
[1730170218030,27.60585888,181.14,181.02,1.4378]
[1730170218635,2.7631,181.11,181.04,2.764]
[1730170218837,27.60585888,181.14,181.04,2.764]
[1730170219233,2.7634,181.09,181.04,2.764]
[1730170219940,27.60585888,181.14,181.02,1.4378]
[1730170220834,27.60585888,181.11,180.96,38.90585888]
[1730170221034,2.7639,181.06,181.01,2.7646]
[1730170221232,27.60585888,181.11,180.96,27.60585888]
[1730170221630,2.7642,181.04,180.99,2.7649]
[1730170221838,27.60585888,181.08,180.95,11.3]
[1730170222433,2.7641,181.04,180.98,2.765]
[1730170222631,2.7641,181.04,180.95,11.3]
[1730170222632,27.60585888,181.08,180.95,11.3]
[1730170222934,2.7643,181.04,180.98,2.765]
[1730170223133,1.4935,181.07,180.94,38.90585888]
[1730170223334,27.60585888,181.04,180.94,11.3]
[1730170223730,1.4708,181.06,180.94,11.3]
[1730170223931,1.4935,181.07,180.95,27.60585888]
[1730170224139,1.4935,181.07,180.94,11.3]
[1730170224140,4.3823,181.16,180.98,27.60585888]
[1730170224346,27.60585888,181.12,180.98,27.60585888]
[1730170224736,2.7635,181.08,181.02,2.7644]
[1730170224936,2.7635,181.08,180.98,27.60585888]
[1730170225136,27.60585888,181.12,180.98,27.60585888]
[1730170225337,2.7636,181.08,181.02,2.7644]
[1730170225544,27.60585888,181.12,180.98,27.60585888]
[1730170225938,2.7633,181.1,181.04,2.7639]
[1730170226144,27.60585888,181.12,180.98,27.60585888]
[1730170227443,2.763,181.1,181.04,2.7637]
[1730170227748,27.60585888,181.13,180.98,38.52585888]
[1730170228245,27.60585888,181.13,181.06,2.7634]
[1730170228837,2.7629,181.1,181.05,2.7637]
[1730170229340,2.7629,181.1,180.98,38.52585888]
[1730170229341,2.7629,181.1,181.06,2.7635]
[1730170229740,2.7629,181.1,180.98,38.52585888]
[1730170229741,27.60585888,181.1,180.98,10.92]
[1730170230039,27.60585888,181.1,181.03,2.764]
[1730170230246,2.7636,181.06,180.95,10.92]
[1730170230446,27.61597275,181.12,180.97,27.61597275]
[1730170230953,2.7628,181.12,181.0,27.61597275]
[1730170231241,27.61597275,181.15,181.08,2.7632]
[1730170231446,27.61597275,181.15,181.03,10.92]
[1730170231842,2.7624,181.14,181.03,10.92]
[1730170232047,27.61597275,181.15,181.03,10.92]
[1730170232359,2.7628,181.12,181.07,2.7633]
[1730170233048,27.61597275,181.15,181.07,2.7633]
[1730170233049,2.7628,181.11,181.07,2.7633]
[1730170233237,27.61597275,181.15,181.07,2.7633]
[1730170233436,27.61597275,181.15,181.03,10.92]
[1730170233652,2.7626,181.12,181.03,10.92]
[1730170233950,27.61597275,181.15,181.03,10.92]
[1730170234450,27.61597275,181.15,181.08,2.7632]
[1730170234747,27.61597275,181.15,181.03,10.92]
[1730170234942,20.02139989,181.15,181.1,2.7628]
[1730170235142,17.25909989,181.15,181.03,28.17909989]
[1730170235548,2.7625,181.13,181.1,2.7629]
[1730170235738,2.7625,181.13,181.03,28.17909989]
[1730170236641,2.7625,181.13,181.06,2.7635]
[1730170236937,17.25909989,181.08,181.01,2.8265]
[1730170237840,4.3823,181.16,180.96,1.4182]
[1730170237841,17.25909989,181.05,180.96,1.4182]
[1730170238551,2.7639,181.04,180.96,1.4182]
[1730170238848,1.5007,181.07,180.91,3.0156]
[1730170238849,17.26714718,181.03,180.91,3.0156]
[1730170239047,17.26714718,181.01,180.91,3.0156]
[1730170239749,17.26714718,181.01,180.95,2.7652]
[1730170240041,1.4516,181.05,180.72,24.8559]
[1730170240247,17.26714718,180.96,180.91,2.7658]
[1730170240442,17.26714718,180.99,180.87,17.26714718]
[1730170240844,2.7647,180.99,180.93,2.7655]
[1730170241148,17.26714718,181.01,180.9,17.26714718]
[1730170241540,2.7646,181.0,180.94,2.7652]
[1730170241840,2.7646,181.0,180.91,1.4181]
[1730170241841,17.26714718,181.01,180.91,1.4181]
[1730170242147,17.26714718,181.01,180.91,2.8745]
[1730170242535,1.4516,181.05,180.95,2.7652]
[1730170244445,27.62269545,181.02,180.92,10.2]
[1730170245048,2.7645,181.0,180.95,2.7651]
[1730170245249,29.07429545,181.05,180.92,10.2]
[1730170245554,2.764,181.04,180.92,10.2]
[1730170245751,29.07429545,181.05,180.92,10.2]
[1730170246149,29.07429545,181.05,180.99,2.7646]
[1730170246550,2.764,181.03,180.92,10.2]
[1730170246856,29.07429545,181.05,180.92,10.2]
[1730170247155,2.7639,181.04,180.92,10.2]
[1730170248257,4.2154,181.05,180.93,27.62269545]
[1730170248456,1.4516,181.05,180.93,27.62269545]
[1730170248858,2.7639,181.04,180.93,27.62269545]
[1730170249057,1.4516,181.05,180.93,27.62269545]
[1730170249248,1.4516,181.05,180.98,2.7646]
[1730170249449,2.7639,181.04,180.93,27.62269545]
[1730170250359,1.4516,181.05,180.99,2.7645]
[1730170250556,2.7641,181.03,180.99,2.7645]
[1730170251266,13.43757363,181.22,181.02,27.62269545]
[1730170251453,13.43757363,181.22,181.03,10.26]
[1730170251454,1.5194,181.21,181.03,10.26]
[1730170251651,1.5194,181.21,181.07,27.62269545]
[1730170252062,1.5194,181.21,181.03,10.26]
[1730170252260,4.2808,181.21,181.13,2.7624]
[1730170252467,1.5194,181.21,181.07,27.62269545]
[1730170252853,1.5194,181.21,181.11,2.7628]
[1730170253060,1.5194,181.21,181.07,27.62269545]
[1730170253471,2.7616,181.19,181.12,2.7625]
[1730170253656,1.5194,181.21,181.07,27.62269545]
[1730170253855,1.5194,181.21,181.13,2.7624]
[1730170254059,1.5194,181.21,181.11,10.64]
[1730170254264,1.5194,181.21,181.11,13.6097]
[1730170254459,1.5194,181.21,181.16,2.762]
[1730170254664,1.5194,181.21,181.11,13.6097]
[1730170255059,2.7618,181.18,181.12,2.7626]
[1730170255262,2.7618,181.18,181.11,10.64]
[1730170255564,1.5194,181.21,181.15,2.7622]
[1730170255965,1.5194,181.21,181.11,10.64]
[1730170257070,2.7614,181.2,181.14,2.7623]
[1730170257260,2.7614,181.2,181.11,10.64]
[1730170258862,1.5194,181.21,181.11,10.64]
[1730170259061,1.5194,181.21,181.11,38.23846423]
[1730170259261,1.5194,181.21,181.11,10.64]
[1730170260465,27.59846423,181.2,181.11,10.64]
[1730170260667,2.7619,181.17,181.11,13.4026]
[1730170260860,2.7619,181.17,181.11,10.64]
[1730170261268,2.7619,181.17,181.08,27.59846423]
[1730170261269,2.7619,181.17,181.13,2.7625]
[1730170261672,2.7617,181.18,181.13,2.7625]
[1730170264472,2.7623,181.14,181.04,17.24984127]
[1730170264676,2.7623,181.14,181.06,10.2]
[1730170264877,17.24984127,181.13,181.04,10.2]
[1730170265178,1.5194,181.21,181.04,10.2]
[1730170265179,17.24984127,181.15,181.04,27.44984127]
[1730170265476,2.7625,181.14,181.09,2.763]
[1730170265681,17.24984127,181.15,181.09,2.763]
[1730170267072,17.24984127,181.15,181.07,2.7633]
[1730170267784,2.7627,181.12,181.07,2.7633]
[1730170268372,20.01294127,181.1,181.02,2.9697]
[1730170268882,2.7631,181.1,181.02,2.9697]
[1730170270080,2.763,181.1,181.05,2.7636]
[1730170270583,2.7634,181.08,181.03,2.7639]
[1730170270777,17.24984127,181.1,180.94,4.4535]
[1730170270969,17.24984127,181.07,180.97,17.24984127]
[1730170271176,17.24984127,181.07,180.95,27.06984127]
[1730170271374,17.24984127,181.05,180.95,27.06984127]
[1730170271776,5.835,181.11,181.06,2.7635]
[1730170271976,3.0722,181.11,181.0,17.24984127]
[1730170272682,17.24984127,181.13,181.03,17.24984127]
[1730170273484,2.7631,181.1,181.05,2.7636]
[1730170274182,17.24984127,181.13,181.0,17.24984127]
[1730170274482,17.24984127,181.13,181.05,2.7637]
[1730170274876,17.24984127,181.13,181.0,17.24984127]
[1730170275076,2.9947,181.14,181.03,17.24984127]
[1730170275277,2.9947,181.14,181.03,27.06984127]
[1730170275479,2.9947,181.14,181.08,2.7632]
[1730170275480,2.7626,181.13,181.08,2.7632]
[1730170275984,2.7626,181.13,181.03,27.06984127]
[1730170276180,2.7626,181.13,181.08,2.7632]
[1730170276484,2.7626,181.12,181.08,2.7632]
[1730170277581,2.79301748,181.27,181.09,17.24984127]
[1730170277774,17.24984127,181.22,181.11,17.24984127]
[1730170278888,2.7615,181.2,181.16,2.762]
[1730170279285,17.24984127,181.22,181.11,17.24984127]
[1730170280081,2.7616,181.19,181.14,2.7622]
[1730170280382,2.7616,181.19,181.11,17.24984127]
[1730170280681,2.7616,181.19,181.14,2.7622]
[1730170281281,2.7623,181.15,181.1,12.2429]
[1730170281479,17.24984127,181.19,181.1,12.2429]
[1730170281981,17.25466873,181.18,181.1,12.2429]
[1730170282483,17.25466873,181.18,181.11,2.7627]
[1730170283077,2.7617,181.19,181.14,2.7622]
[1730170283277,17.25466873,181.2,181.1,9.48]
[1730170283684,4.4258,181.23,181.13,2.7623]
[1730170283685,2.7617,181.18,181.13,2.7623]
[1730170283885,17.25466873,181.22,181.11,17.25466873]
[1730170284282,2.762,181.17,181.12,2.7626]
[1730170285086,2.7621,181.16,181.12,2.7626]
[1730170285287,17.25466873,181.2,181.08,17.25466873]
[1730170285478,17.25466873,181.18,181.07,9.46]
[1730170285682,2.7625,181.13,181.06,9.46]
[1730170285891,2.7625,181.13,181.08,17.25466873]
[1730170286190,21.68046873,181.23,181.1,17.25466873]
[1730170286482,21.68046873,181.23,181.12,2.7625]
[1730170286681,2.762,181.17,181.1,17.25466873]
[1730170286886,21.68046873,181.23,181.12,17.25466873]
[1730170287285,2.7618,181.18,181.12,11.9448815]
[1730170287885,11.9448815,181.26,181.14,11.9448815]
[1730170288384,2.761,181.23,181.17,11.9448815]
[1730170288586,16.4504815,181.28,181.17,11.9448815]
[1730170289085,2.7611,181.23,181.19,2.7615]
[1730170289484,19.15468146,181.28,181.19,2.7615]
[1730170289690,2.7611,181.22,181.19,2.7615]
[1730170289997,11.9448815,181.26,181.14,16.3812815]
[1730170290290,11.9448815,181.23,181.14,2.9114]
[1730170291295,2.7615,181.2,181.16,2.762]
[1730170291692,11.9448815,181.23,181.05,1.525]
[1730170291885,11.9448815,181.21,181.09,14.7077815]
[1730170292089,1.559,181.2,181.09,11.9448815]
[1730170292490,2.7623,181.15,181.11,2.7628]
[1730170293492,2.7623,181.15,181.09,11.9448815]
[1730170293693,2.7624,181.14,181.1,2.7629]
[1730170294684,14.72002801,181.18,181.07,11.9448815]
[1730170294888,11.9448815,181.18,181.07,11.9448815]
[1730170295193,2.7632,181.09,181.06,2.8419]
[1730170295694,11.9448815,181.16,181.06,2.8419]
[1730170295695,11.9448815,181.16,181.07,11.9448815]
[1730170296300,2.7629,181.11,181.07,14.7081815]
[1730170298499,2.7627,181.12,181.08,2.7631]
[1730170298997,2.7628,181.11,181.07,14.7082815]
[1730170305397,2.7628,181.11,181.07,2.7634]
[1730170307496,11.94690701,181.12,181.04,59.7]
[1730170307708,11.94690701,181.1,180.98,20.34690701]
[1730170307897,11.94690701,181.12,181.0,11.94690701]
[1730170308095,2.7631,181.09,181.03,2.7639]
[1730170308305,11.94690701,181.12,181.01,2.9873]
[1730170308792,2.7634,181.07,181.04,2.7638]
[1730170308999,11.94690701,181.15,181.05,11.94690701]
[1730170309204,11.94690701,181.17,181.05,11.94690701]
[1730170309398,2.7624,181.14,181.09,2.763]
[1730170309600,2.81723372,181.18,181.09,2.763]
[1730170309998,12.17422093,181.19,181.09,2.763]
[1730170310399,2.7623,181.15,181.11,2.7628]
[1730170311202,2.7624,181.14,181.1,2.7629]
[1730170312110,2.7626,181.13,181.09,2.763]
[1730170312603,12.17422093,181.19,181.08,10.61652093]
[1730170313002,1.559,181.2,181.11,10.61652093]
[1730170313406,1.559,181.2,181.12,8.06]
[1730170313607,1.559,181.2,181.13,10.61652093]
[1730170313808,2.7618,181.18,181.13,10.61652093]
[1730170314002,2.7618,181.18,181.14,2.7622]
[1730170314594,2.7618,181.18,181.13,10.61652093]
[1730170314808,2.7616,181.19,181.15,2.7621]
[1730170315005,2.7616,181.19,181.13,10.61652093]
[1730170315203,2.7616,181.19,181.13,13.64632093]
[1730170316807,2.7614,181.21,181.16,2.762]
[1730170317106,12.07642093,181.26,181.15,10.61652093]
[1730170317307,2.7614,181.2,181.16,2.762]
[1730170317709,2.7614,181.2,181.15,10.61652093]
[1730170318803,12.07642093,181.26,181.15,13.37852093]
[1730170319010,2.7616,181.19,181.15,13.37852093]
[1730170319514,2.7614,181.2,181.16,2.762]
[1730170319904,2.7614,181.2,181.15,10.61652093]
[1730170319905,12.07642093,181.26,181.15,10.61652093]
[1730170320309,1.4599,181.26,181.18,10.61652093]
[1730170321102,2.7608,181.24,181.2,2.7614]
[1730170322016,2.70419996,181.28,181.18,10.61652093]
[1730170322205,10.61652093,181.26,181.15,10.61652093]
[1730170322620,10.61652093,181.24,181.15,2.7621]
[1730170322815,10.61652093,181.24,181.14,7.72]
[1730170323422,2.7617,181.19,181.15,2.7621]
[1730170323616,2.7617,181.19,181.14,7.72]
[1730170323617,10.61652093,181.24,181.14,7.72]
[1730170323823,2.9723,181.23,181.14,7.72]
[1730170324628,2.9723,181.23,181.13,13.64632093]
[1730170324629,2.9723,181.23,181.13,21.36632093]
[1730170325134,2.9723,181.23,181.15,10.61652093]
[1730170325430,2.7614,181.21,181.17,2.7618]
[1730170325725,2.9723,181.23,181.15,10.61652093]
[1730170327328,10.61652093,181.26,181.15,10.61652093]
[1730170327635,18.33652093,181.27,181.17,10.61652093]
[1730170328525,18.33652093,181.27,181.15,10.61652093]
[1730170328718,2.7612,181.22,181.18,2.7617]
[1730170328918,18.33652093,181.27,181.15,10.61652093]
[1730170329230,10.61393537,181.26,181.15,10.61393537]
[1730170329423,2.7615,181.2,181.16,2.762]
[1730170329726,10.61393537,181.24,181.13,21.36373537]
[1730170329918,2.7618,181.18,181.14,2.7623]
[1730170330730,2.7622,181.16,181.12,2.7626]
[1730170330926,13.42973898,181.19,181.09,7.72]
[1730170331123,13.42973898,181.19,181.08,10.61393537]
[1730170331335,1.512,181.18,181.08,10.61393537]
[1730170332131,2.7625,181.13,181.09,2.7631]
[1730170332337,1.512,181.18,181.08,10.61393537]
[1730170333242,12.16703537,181.21,181.1,10.61393537]
[1730170333840,2.762,181.16,181.1,10.61393537]
[1730170334435,2.7625,181.13,181.1,10.1629]
[1730170334734,2.7625,181.13,181.1,7.4]
[1730170334936,1.5531,181.21,181.1,7.4]
[1730170334937,10.61393537,181.19,181.1,7.4]
[1730170335141,10.61393537,181.19,181.11,2.7628]
[1730170335142,2.7623,181.15,181.11,2.7628]
[1730170335533,10.61393537,181.19,181.11,2.7628]
[1730170335734,2.7623,181.14,181.1,10.1629]
[1730170337341,2.7628,181.11,181.07,2.7633]
[1730170337539,2.7628,181.11,181.06,10.3759]
[1730170337840,10.6210415,181.18,181.07,10.6210415]
[1730170338441,2.7624,181.14,181.1,2.7628]
[1730170338647,2.7624,181.14,181.07,10.6210415]
[1730170339046,2.7624,181.14,181.09,2.7631]
[1730170339245,1.5531,181.21,181.1,10.6210415]
[1730170339642,1.5531,181.21,181.13,2.7624]
[1730170339843,1.5531,181.21,181.1,10.6210415]
[1730170340048,1.5531,181.21,181.12,10.6210415]
[1730170340253,1.5531,181.21,181.13,2.7624]
[1730170340446,2.7621,181.16,181.09,10.6210415]
[1730170340749,1.5531,181.21,181.09,10.6210415]
[1730170340951,1.5571,181.22,181.12,10.6210415]
[1730170341146,2.7614,181.2,181.14,10.6210415]
[1730170341345,2.7614,181.2,181.16,2.7619]
[1730170341545,1.5571,181.22,181.16,2.7619]
[1730170341846,2.7616,181.19,181.14,10.6210415]
[1730170342049,1.5571,181.22,181.15,2.7621]
[1730170343052,2.7617,181.19,181.15,2.7621]
[1730170343548,12.1781415,181.22,181.12,18.0210415]
[1730170343754,10.6210415,181.19,181.12,7.4]
[1730170344640,1.469,181.21,181.12,7.4]
[1730170344845,2.762,181.16,181.12,18.0210415]
[1730170345344,1.469,181.21,181.12,18.0210415]
[1730170345650,2.7619,181.17,181.12,18.0210415]
[1730170345946,2.7617,181.19,181.15,13.3831415]
[1730170346146,2.7617,181.19,181.15,10.6210415]
[1730170346347,1.5571,181.22,181.15,10.6210415]
[1730170346541,2.7618,181.18,181.15,10.6210415]
[1730170347650,2.7618,181.18,181.15,13.3831415]
[1730170347850,1.5571,181.22,181.15,10.6210415]
[1730170348558,1.5571,181.22,181.12,18.0210415]
[1730170348754,1.5571,181.22,181.12,10.6210415]
[1730170349250,2.7623,181.15,181.12,10.6210415]
[1730170349652,13.39238079,181.19,181.08,10.6210415]
[1730170349863,10.6210415,181.16,181.08,7.06]
[1730170350060,13.40979148,181.19,181.08,17.6810415]
[1730170350353,10.6210415,181.21,181.11,2.7626]
[1730170350559,10.6210415,181.21,181.1,10.6210415]
[1730170351654,8.6171,181.22,181.13,10.6210415]
[1730170351851,1.5571,181.22,181.15,10.6210415]
[1730170352550,2.7617,181.18,181.15,10.6210415]
[1730170353666,2.7617,181.18,181.15,13.3832415]
[1730170354547,1.4229,181.23,181.15,10.6210415]
[1730170354858,2.7615,181.2,181.16,2.762]
[1730170355057,17.6810415,181.26,181.16,2.762]
[1730170355262,2.7615,181.2,181.16,2.762]
[1730170356169,2.7616,181.19,181.16,2.762]
[1730170357165,2.7612,181.22,181.18,2.7617]
[1730170357468,10.6210415,181.26,181.15,10.6210415]
[1730170357765,2.7615,181.2,181.16,2.762]
[1730170357963,10.6210415,181.26,181.15,10.6210415]
[1730170359160,2.761,181.23,181.17,2.7618]
[1730170359366,10.6210415,181.26,181.17,2.7618]
[1730170360268,2.7614,181.21,181.17,2.7618]
[1730170361864,2.7614,181.2,181.17,2.7618]
[1730170362069,10.6210415,181.23,181.14,9.8223]
[1730170363265,10.6210415,181.23,181.14,7.06]
[1730170363475,10.6210415,181.26,181.15,10.6210415]
[1730170363659,1.4991,181.27,181.15,10.6210415]
[1730170363968,2.7614,181.21,181.17,2.7618]
[1730170364865,2.7614,181.21,181.15,10.6210415]
[1730170365070,2.7611,181.22,181.19,2.7615]
[1730170365559,2.7611,181.22,181.17,10.6210415]
[1730170365762,2.7611,181.22,181.18,2.7617]
[1730170366161,2.7614,181.21,181.17,13.3828415]
[1730170366770,2.7615,181.2,181.16,2.7619]
[1730170367465,2.7616,181.19,181.16,2.7619]
[1730170367760,10.6210415,181.26,181.16,2.7619]
[1730170367966,2.762,181.17,181.14,6.72]
[1730170368169,10.6210415,181.21,181.14,6.72]
[1730170368356,10.6210415,181.21,181.05,4.4605]
[1730170368357,10.6210415,181.24,181.13,2.7624]
[1730170368561,2.7616,181.19,181.12,10.6210415]
[1730170369571,2.7616,181.19,181.13,2.9418]
[1730170370272,2.7616,181.19,181.15,2.762]
[1730170370863,2.7616,181.19,181.13,2.9418]
[1730170371472,2.7616,181.19,181.15,2.7621]
[1730170372573,2.7616,181.19,181.16,2.762]
[1730170377771,10.61709422,181.24,181.13,2.9418]
[1730170379481,10.61709422,181.24,181.16,2.762]
[1730170380375,2.7616,181.19,181.16,2.762]
[1730170384583,16.97555626,181.25,181.14,10.61555626]
[1730170384891,1.4991,181.27,181.16,10.61555626]
[1730170385678,1.4991,181.27,181.08,2.76320111]
[1730170385679,10.61555626,181.27,181.08,2.76320111]
[1730170385868,1.4685,181.29,181.13,10.61555626]
[1730170385869,10.61555626,181.25,181.13,10.61555626]
[1730170386274,9.3838,181.26,181.13,10.61555626]
[1730170386275,10.61555626,181.22,181.13,10.61555626]
[1730170386477,2.762,181.17,181.13,2.7625]
[1730170386682,2.81930531,181.2,181.11,10.61555626]
[1730170386881,10.61555626,181.22,181.11,10.61555626]
[1730170387085,2.762,181.16,181.13,2.7624]
[1730170387473,2.762,181.16,181.11,10.61555626]
[1730170387671,2.762,181.16,181.12,2.7625]
[1730170387876,2.7619,181.17,181.11,10.61555626]
[1730170388073,2.7619,181.17,181.1,6.36]
[1730170389279,2.7619,181.17,181.13,2.7624]
[1730170389680,10.61555626,181.19,181.1,6.36]
[1730170389880,2.7623,181.15,181.1,6.36]
[1730170390076,10.61555626,181.19,181.1,6.36]
[1730170390280,10.61555626,181.17,181.05,4.4611]
[1730170390584,10.61555626,181.14,181.04,6.36]
[1730170392090,1.4896,181.16,181.0,1.4136]
[1730170392091,10.61555626,181.12,181.02,6.38]
[1730170392284,10.61555626,181.12,181.0,12.02915626]
[1730170392285,10.61555626,181.12,181.01,6.38]